bitfinex-derivatives/quotes_ETHF0:USTF0_20210102
["timestamp","ask_amount","ask_price","bid_price","bid_amount"]
[1609617597549,15.0,783.41,783.23,17.06778663]
[1609617597750,15.0,783.58,783.23,17.06778663]
[1609617597951,15.0,783.4,783.23,17.06778663]
[1609617598452,15.0,783.4,783.27,17.06301222]
[1609617598954,15.0,783.39,783.27,17.06301222]
[1609617599553,15.0,783.39,783.31,6.01438]
[1609617599954,6.01438,783.47,783.31,6.01438]
[1609617600153,15.0,783.58,783.31,6.01438]
[1609617601458,15.0,783.58,783.57,6.01438]
[1609617601957,15.0,783.58,783.28,17.06091347]
[1609617602759,15.0,783.58,783.51,17.03351343]
[1609617603459,15.0,783.58,783.57,6.01438]
[1609617605066,3.393,783.59,783.57,6.01438]
[1609617605263,15.0,783.79,783.57,6.01438]
[1609617605463,15.0,783.79,783.78,6.01438]
[1609617605663,4.573,783.8,783.78,6.01438]
[1609617605967,6.01438,783.84,783.78,6.01438]
[1609617606773,21.01438,783.84,783.78,6.01438]
[1609617607574,21.01438,783.84,783.69,6.01438]
[1609617607771,6.01438,783.84,783.69,6.01438]
[1609617608474,15.0,784.16,783.69,6.01438]
[1609617608875,15.0,784.18,783.69,6.01438]
[1609617609676,15.0,784.18,783.97,6.01438]
[1609617610476,15.0,784.18,783.73,17.06610512]
[1609617611177,15.0,784.18,783.81,17.05729594]
[1609617611582,6.01438,784.06,783.94,6.01438]
[1609617611978,15.0,784.18,783.94,6.01438]
[1609617613178,18.158,784.19,783.94,6.01438]
[1609617615578,3.158,784.19,783.94,6.01438]
[1609617615779,18.158,784.19,783.94,6.01438]
[1609617616883,3.158,784.19,783.94,6.01438]
[1609617617383,5.22947839,783.98,783.94,6.01438]
[1609617621187,5.22947839,783.98,783.86,17.11186952]
[1609617621387,5.22947839,783.98,783.89,17.09288003]
[1609617622385,20.22947839,783.98,783.89,17.09288003]
[1609617624388,20.22947839,783.98,783.81,17.0914527]
[1609617624888,5.22947839,783.98,783.81,17.0914527]
[1609617625588,20.22947839,783.98,783.81,17.0914527]
[1609617626188,20.22947839,783.98,783.73,6.01438]
[1609617627489,20.22947839,783.98,783.66,17.06291894]
[1609617627689,6.01438,783.8,783.67,6.01438]
[1609617627888,15.0,783.79,783.66,17.06291894]
[1609617628589,15.0,783.79,783.63,17.06620632]
[1609617629190,4.026,783.8,783.63,17.06620632]
[1609617629591,4.026,783.8,783.79,6.01438]
[1609617630894,5.22947839,783.98,783.79,6.01438]
[1609617631392,15.0,783.97,783.79,6.01438]
[1609617631592,15.0,783.97,783.96,6.01438]
[1609617632393,5.22947839,783.98,783.96,6.01438]
[1609617633394,4.25,783.98,783.96,6.01438]
[1609617637297,15.0,783.97,783.96,6.01438]
[1609617638497,15.0,783.97,783.95,17.08465983]
[1609617638998,15.0,783.97,783.88,17.10481146]
[1609617639603,6.01438,783.89,783.88,17.10481146]
[1609617639800,21.01438,783.89,783.88,17.10481146]
[1609617640000,21.01438,783.89,783.77,17.10579465]
[1609617640701,6.01438,783.89,783.77,17.10579465]
[1609617640901,15.0,783.88,783.77,17.10579465]
[1609617641101,15.0,783.88,783.72,17.11190209]
[1609617642211,15.0,783.88,783.74,17.12628641]
[1609617643210,15.0,783.88,783.71,17.14026579]
[1609617643813,15.0,783.8,783.73,6.01438]
[1609617645213,6.01438,783.81,783.73,6.01438]
[1609617645913,21.01438,783.81,783.73,6.01438]
[1609617646514,0.97947839,783.75,783.73,6.01438]
[1609617646714,0.97947839,783.75,783.7,17.15466635]
[1609617647114,0.97947839,783.75,783.72,17.15625364]
[1609617647616,0.97947839,783.75,783.73,17.15558887]
[1609617648618,0.97947839,783.75,783.7,17.15817677]
[1609617649816,6.01438,783.71,783.7,17.15817677]
[1609617650016,21.01438,783.71,783.7,17.15817677]
[1609617650617,21.01438,783.71,783.62,6.01438]
[1609617650918,21.01438,783.71,783.61,3.97]
[1609617651118,21.01438,783.71,783.56,20.29067716]
[1609617651817,6.01438,783.57,783.56,20.29067716]
[1609617652018,24.52738,783.57,783.56,20.29067716]
[1609617652921,24.52738,783.57,783.11,6.01438]
[1609617652922,24.52738,783.57,783.42,23.42110182]
[1609617653819,6.01438,783.43,783.42,23.42110182]
[1609617654020,21.01438,783.43,783.35,17.17717904]
[1609617655625,21.01438,783.43,783.2,20.3003025]
[1609617655822,6.01438,783.21,783.2,20.3003025]
[1609617656024,24.39238,783.21,783.2,20.3003025]
[1609617656424,24.39238,783.21,783.08,20.30455281]
[1609617657525,24.39238,783.21,783.07,17.18325629]
[1609617657926,21.01438,783.08,783.07,17.18325629]
[1609617659325,21.01438,783.08,783.04,17.1850937]
[1609617660325,6.01438,783.08,783.04,17.1850937]
[1609617660526,15.0,783.2,783.04,17.1850937]
[1609617660725,15.0,783.2,783.0,2.0]
[1609617661326,15.0,783.19,783.0,2.0]
[1609617662729,15.0,783.19,783.17,17.18258903]
[1609617664030,15.0,783.18,783.17,17.18258903]
[1609617664231,15.0,783.18,783.0,2.0]
[1609617664232,15.0,783.18,783.04,17.18363224]
[1609617664830,3.378,783.21,783.04,17.18363224]
[1609617665030,3.513,783.57,783.0,2.0]
[1609617665031,15.0,783.56,783.16,17.1821519]
[1609617665231,15.0,783.38,783.16,17.1821519]
[1609617665429,18.692,783.38,783.16,17.1821519]
[1609617665835,18.692,783.38,783.17,6.01438]
[1609617666034,3.692,783.38,783.17,6.01438]
[1609617666435,3.692,783.38,783.33,17.18264266]
[1609617666636,15.0,783.37,783.33,17.18264266]
[1609617667237,15.0,783.37,783.3,17.1834563]
[1609617667537,3.692,783.38,783.3,17.1834563]
[1609617667938,3.692,783.38,783.37,6.01438]
[1609617669240,3.692,783.38,783.33,17.17822432]
[1609617669839,3.692,783.38,783.36,6.01438]
[1609617670441,6.01438,783.45,783.36,6.01438]
[1609617670642,18.513,783.57,783.36,6.01438]
[1609617671444,3.513,783.57,783.36,6.01438]
[1609617671644,15.0,783.77,783.36,6.01438]
[1609617672043,15.0,783.77,783.74,6.01438]
[1609617672943,15.0,783.97,783.74,6.01438]
[1609617674246,15.0,783.77,783.74,6.01438]
[1609617674646,15.0,783.77,783.7,17.1735574]
[1609617675247,15.0,783.97,783.63,17.17392301]
[1609617675947,6.01438,783.77,783.63,17.17392301]
[1609617676147,6.01438,783.77,783.68,17.17323093]
[1609617676748,15.0,783.76,783.68,17.17323093]
[1609617676948,111.4106,783.76,783.68,17.17323093]
[1609617677349,111.4106,783.76,783.7,17.17431812]
[1609617678551,111.4106,783.76,783.49,17.17711845]
[1609617679154,15.0,783.76,783.49,17.17711845]
[1609617681458,6.01438,783.77,783.49,17.17711845]
[1609617682058,15.0,783.97,783.49,17.17711845]
[1609617682458,15.0,783.96,783.49,17.17711845]
[1609617683561,15.0,783.95,783.49,17.17711845]
[1609617683959,6.01438,783.74,783.49,17.17711845]
[1609617684759,15.0,784.25,783.49,17.17711845]
[1609617685159,19.25,783.98,783.49,17.17711845]
[1609617685661,19.25,783.98,783.43,6.01438]
[1609617686061,6.01438,783.72,783.53,6.01438]
[1609617686863,15.0,783.71,783.53,6.01438]
[1609617687463,15.0,783.71,783.41,21.66540375]
[1609617687464,15.0,783.71,783.68,17.14876653]
[1609617689575,15.0,783.7,783.68,17.14876653]
[1609617690268,15.0,783.7,783.59,17.159692]
[1609617690469,3.32,783.78,783.59,17.159692]
[1609617690673,15.0,783.77,783.59,17.159692]
[1609617691471,15.0,783.77,783.67,17.12838165]
[1609617691872,3.32,783.78,783.67,17.12838165]
[1609617692071,3.32,783.78,783.64,17.12359434]
[1609617692571,15.0,783.77,783.64,17.12359434]
[1609617693373,15.0,783.77,783.63,17.08755617]
[1609617694073,21.01438,783.64,783.63,17.08755617]
[1609617694375,21.01438,783.64,783.5,17.09222874]
[1609617695676,21.01438,783.64,783.41,4.493]
[1609617695677,21.01438,783.64,783.47,17.09644758]
[1609617696074,15.0,783.77,783.47,17.09644758]
[1609617696674,15.0,783.77,783.48,17.08953254]
[1609617697275,3.32,783.78,783.48,17.08953254]
[1609617697473,15.0,783.76,783.48,17.08953254]
[1609617697875,15.0,783.76,783.54,17.08264097]
[1609617698074,6.01438,783.69,783.54,17.08264097]
[1609617700479,3.32,783.78,783.55,17.04189417]
[1609617701585,4.25,783.98,783.55,17.04189417]
[1609617702185,4.25,783.98,783.97,6.01438]
[1609617703886,19.25,783.98,783.97,6.01438]
[1609617704085,19.25,783.98,783.82,17.02415608]
[1609617705689,19.25,783.98,783.75,1.0]
[1609617705690,19.25,783.98,783.78,17.03421048]
[1609617706189,6.01438,783.79,783.78,17.03421048]
[1609617706389,21.01438,783.79,783.78,17.03421048]
[1609617706891,39.64938,783.79,783.78,17.03421048]
[1609617707492,39.64938,783.79,783.75,1.0]
[1609617707691,24.89838,783.79,783.75,1.0]
[1609617708092,0.4,783.78,783.75,1.0]
[1609617711897,0.4,783.78,783.31,17.11845148]
[1609617712298,6.01438,783.32,783.31,17.11845148]
[1609617712500,21.01438,783.32,783.31,17.11845148]
[1609617712699,25.76438,783.32,783.31,17.11845148]
[1609617712898,25.76438,783.32,783.15,17.16456314]
[1609617714299,15.0,783.15,783.1,17.17058622]
[1609617715500,15.0,783.15,783.08,17.17330648]
[1609617716902,15.0,783.15,783.07,17.17439121]
[1609617717103,15.0,783.14,783.07,17.17439121]
[1609617718004,15.0,783.31,783.07,17.17439121]
[1609617718204,6.01438,783.08,783.07,17.17439121]
[1609617718404,21.01438,783.08,783.07,17.17439121]
[1609617719105,21.01438,783.08,783.0,2.0]
[1609617720006,21.01438,783.08,783.04,17.17957791]
[1609617720606,21.01438,783.08,783.0,2.0]
[1609617720607,21.01438,783.08,783.0,19.18292697]
[1609617722908,6.01438,783.08,783.0,19.18292697]
[1609617723210,6.01438,783.08,783.0,2.0]
[1609617723710,15.0,783.07,783.0,2.0]
[1609617727418,15.0,783.07,783.06,17.18414113]
[1609617728618,15.0,783.07,783.0,2.0]
[1609617729217,6.01438,783.08,783.0,2.0]
[1609617729418,6.01438,783.08,783.05,17.18482377]
[1609617729617,19.935,783.13,783.05,17.18482377]
[1609617730318,19.935,783.13,783.08,6.01438]
[1609617730719,4.935,783.13,783.08,6.01438]
[1609617730920,15.0,783.31,783.08,6.01438]
[1609617731320,15.0,783.31,783.0,2.0]
[1609617733120,15.0,783.31,783.1,17.18469156]
[1609617734330,15.0,783.31,783.13,17.18499178]
[1609617734331,6.01438,783.14,783.13,17.18499178]
[1609617734528,24.99738,783.14,783.13,17.18499178]
[1609617735027,18.983,783.14,783.13,17.18499178]
[1609617735428,18.983,783.14,783.1,17.18438921]
[1609617736430,6.01438,783.11,783.1,17.18438921]
[1609617736629,21.01438,783.11,783.1,17.18438921]
[1609617738629,21.01438,783.11,783.0,2.0]
[1609617738630,21.01438,783.11,783.09,17.1854444]
[1609617739832,21.01438,783.11,783.0,2.0]
[1609617740432,6.01438,783.01,783.0,2.0]
[1609617741234,21.01438,783.01,783.0,2.0]
[1609617749552,6.01438,783.01,783.0,2.0]
[1609617749851,21.01438,783.01,783.0,2.0]
[1609617758765,6.01438,783.01,783.0,2.0]
[1609617760466,21.01438,783.01,783.0,2.0]
[1609617764673,21.01438,783.01,782.82,1.0]
[1609617765373,106.7791,782.75,782.68,17.19593285]
[1609617765576,106.7791,782.75,782.66,2.02929469]
[1609617765577,15.0,782.74,782.66,2.02929469]
[1609617766673,6.01438,782.67,782.02,17.20489861]
[1609617766874,15.0,782.66,782.02,17.20489861]
[1609617767075,15.0,782.66,781.92,17.2048358]
[1609617767777,93.2975,782.43,781.92,17.2048358]
[1609617767976,15.0,782.42,781.92,17.2048358]
[1609617768379,15.0,782.42,781.93,17.20718443]
[1609617768577,6.01438,782.06,781.93,17.20718443]
[1609617768876,10.08338,782.06,781.93,17.20718443]
[1609617769076,10.08338,782.06,781.91,6.01438]
[1609617769077,10.08338,782.06,781.97,17.20673446]
[1609617770479,10.08338,782.06,781.94,17.2083728]
[1609617771378,25.08338,782.06,781.94,17.2083728]
[1609617772579,6.01438,781.95,781.94,17.2083728]
[1609617772780,21.01438,781.95,781.94,17.2083728]
[1609617772983,105.36788,781.95,781.94,17.2083728]
[1609617773384,105.36788,781.95,781.85,17.21137417]
[1609617773782,21.01438,781.95,781.85,17.21137417]
[1609617773983,109.553,781.86,781.85,17.21137417]
[1609617774182,112.815,781.86,781.85,17.21137417]
[1609617774384,112.815,781.86,781.81,1.0]
[1609617774583,6.01438,781.82,781.81,1.0]
[1609617774783,21.01438,781.82,781.81,1.0]
[1609617780192,95.3514,781.51,781.25,17.22413339]
[1609617780392,15.0,781.5,781.25,17.22413339]
[1609617780591,6.01438,781.26,781.25,17.22413339]
[1609617780994,21.01438,781.26,781.25,17.22413339]
[1609617781996,6.01438,781.26,781.25,17.22413339]
[1609617782199,4.388,781.51,781.25,17.22413339]
[1609617782597,6.01438,781.45,781.25,17.22413339]
[1609617783197,4.388,781.51,781.25,17.22413339]
[1609617783399,15.0,781.84,781.25,17.22413339]
[1609617784299,15.0,781.97,781.25,17.22413339]
[1609617784700,6.01438,781.83,781.72,6.01438]
[1609617784901,10.71238,781.83,781.72,6.01438]
[1609617786503,10.71238,781.83,781.11,3.766]
[1609617786504,88.7196,781.73,781.2,17.2241019]
[1609617786718,6.01438,781.56,781.29,6.01438]
[1609617786904,12.4534,781.3,781.29,6.01438]
[1609617787403,12.4534,781.3,781.2,17.2241019]
[1609617787605,12.4534,781.3,781.25,17.22284019]
[1609617787802,6.01438,781.56,781.25,17.22284019]
[1609617788003,4.212,781.57,781.25,17.22284019]
[1609617788404,4.212,781.57,781.21,17.22464494]
[1609617788806,4.212,781.57,781.3,6.01438]
[1609617789206,4.212,781.57,781.31,17.22400337]
[1609617790106,4.212,781.57,781.27,17.22754511]
[1609617790706,4.212,781.57,781.32,6.01438]
[1609617791915,4.212,781.57,781.35,17.22309737]
[1609617792115,4.698,781.83,781.35,17.22309737]
[1609617792316,15.0,781.82,781.35,17.22309737]
[1609617792715,6.01438,781.68,781.35,17.22309737]
[1609617792915,6.01438,781.68,781.43,17.22411504]
[1609617793717,6.01438,781.68,781.39,17.22287811]
[1609617793917,3.816,781.82,781.39,17.22287811]
[1609617794717,3.816,781.82,781.76,6.01438]
[1609617794917,3.816,781.82,781.41,17.21836645]
[1609617795918,18.816,781.82,781.41,17.21836645]
[1609617796319,18.816,781.82,781.56,17.22278557]
[1609617796722,3.816,781.82,781.56,17.22278557]
[1609617797719,3.816,781.82,781.49,6.01438]
[1609617797920,6.01438,781.83,781.49,6.01438]
[1609617798120,4.429,781.82,781.49,6.01438]
[1609617798520,4.429,781.82,781.49,23.23320428]
[1609617798719,4.429,781.82,781.81,6.01438]
[1609617800721,7.43850836,782.38,781.81,6.01438]
[1609617800922,1.42236642,782.28,781.81,6.01438]
[1609617801521,6.01438,782.38,781.81,6.01438]
[1609617802421,15.0,782.37,781.81,6.01438]
[1609617802823,6.01438,782.24,781.97,6.01438]
[1609617803025,15.0,782.23,781.69,17.2177301]
[1609617804328,15.0,782.23,747.86,0.2343692]
[1609617804329,15.0,782.23,781.56,17.22197324]
[1609617804827,6.01438,781.72,781.56,17.22197324]
[1609617805026,10.92238,781.72,781.56,17.22197324]
[1609617805826,10.92238,781.72,781.39,17.22324058]
[1609617806826,10.92238,781.72,781.47,6.01438]
[1609617808729,13.7582,781.7,781.47,6.01438]
[1609617808930,6.01438,781.58,781.32,17.22483352]
[1609617809131,15.0,781.57,781.32,17.22483352]
[1609617809933,15.0,781.57,779.2,6.6251]
[1609617809934,15.0,781.57,781.34,17.23084739]
[1609617810433,15.0,781.54,781.34,17.23084739]
[1609617810633,18.883,781.54,781.34,17.23084739]
[1609617810833,6.01438,781.35,781.34,17.23084739]
[1609617811036,21.01438,781.35,781.01,17.23551642]
[1609617811234,24.64638,781.35,781.01,17.23551642]
[1609617812536,24.64638,781.35,780.72,6.01438]
[1609617812537,24.64638,781.35,780.88,17.23762838]
[1609617812936,6.01438,780.89,780.88,17.23762838]
[1609617813940,6.01438,780.89,780.76,17.23897515]
[1609617814743,6.01438,780.89,780.72,6.01438]
[1609617814938,6.01438,780.73,780.72,6.01438]
[1609617815140,10.41238,780.73,780.67,17.24014348]
[1609617815341,88.082,780.68,780.6,17.24145486]
[1609617815541,103.082,780.68,780.6,17.24145486]
[1609617816242,103.082,780.68,780.49,17.24337687]
[1609617816842,6.01438,780.5,780.49,17.24337687]
[1609617817043,8.99638,780.5,780.49,17.24337687]
[1609617817246,37.95738,780.5,780.42,17.24518208]
[1609617817443,23.99638,780.5,780.42,17.24518208]
[1609617817643,81.8475,780.43,780.42,17.24518208]
[1609617817844,15.0,780.43,780.42,17.24518208]
[1609617818044,15.0,780.43,780.26,17.24881616]
[1609617818245,8.99638,780.5,780.26,17.24881616]
[1609617818445,99.554,780.36,780.26,17.24881616]
[1609617818845,6.01438,780.27,780.26,17.24881616]
[1609617819046,24.18038,780.27,780.12,17.24987252]
[1609617819450,80.5767,780.13,780.12,17.24987252]
[1609617819651,95.5767,780.13,780.12,17.24987252]
[1609617820557,95.5767,780.13,779.97,14.69128549]
[1609617820747,95.5767,780.13,779.89,20.40059557]
[1609617820748,15.0,780.13,779.89,20.40059557]
[1609617820947,6.01438,779.9,779.89,20.40059557]
[1609617821147,24.90238,779.9,779.89,20.40059557]
[1609617821348,9.90238,779.9,779.58,18.50544621]
[1609617821748,15.0,779.89,779.58,18.50544621]
[1609617821948,15.0,779.89,779.58,4.44144621]
[1609617822350,15.0,779.89,779.19,31.38553165]
[1609617822548,73.2555,779.65,779.19,31.38553165]
[1609617822748,15.0,779.64,779.19,31.38553165]
[1609617822950,21.01438,779.2,779.19,31.38553165]
[1609617823749,24.91238,779.2,779.19,31.38553165]
[1609617824350,24.91238,779.2,779.19,29.49883165]
[1609617824550,24.91238,779.2,778.62,6.27710633]
[1609617824952,6.01438,778.81,778.62,6.27710633]
[1609617825150,21.01438,778.81,778.62,6.27710633]
[1609617825351,21.01438,778.81,777.2,6.01438]
[1609617825550,15.0,778.55,777.2,6.01438]
[1609617825751,83.0663,778.56,777.2,6.01438]
[1609617825950,83.0663,778.56,777.2,8.98438]
[1609617826353,24.2579,778.56,777.2,8.98438]
[1609617826951,21.01438,778.42,777.2,2.97]
[1609617827151,25.28338,778.42,777.2,2.97]
[1609617827554,10.28338,778.42,777.2,2.97]
[1609617827951,15.0,778.41,777.2,2.97]
[1609617828652,10.28338,778.42,777.2,2.97]
[1609617828852,10.28338,778.42,778.03,6.01438]
[1609617829856,10.28338,778.42,778.03,10.52938]
[1609617830656,10.28338,778.42,778.03,4.515]
[1609617830855,6.01438,778.2,778.03,4.515]
[1609617831657,4.269,778.42,778.03,4.515]
[1609617832262,2.59529696,778.46,778.03,4.515]
[1609617833160,8.1672,778.71,778.03,4.515]
[1609617834860,8.1672,778.71,777.69,15.0]
[1609617835060,8.1672,778.71,778.7,6.01438]
[1609617836263,8.1672,778.71,778.54,4.645]
[1609617836865,8.1672,778.71,778.7,6.01438]
[1609617837064,8.1672,778.71,778.54,4.645]
[1609617837566,8.1672,778.71,778.67,17.28175237]
[1609617838865,14.18158,778.71,778.65,17.2868631]
[1609617840470,15.0,778.7,778.33,17.28841079]
[1609617841070,6.01438,778.34,778.33,17.28841079]
[1609617841471,6.01438,778.34,778.22,17.28865957]
[1609617841872,15.0,778.33,778.22,17.28865957]
[1609617842071,15.0,778.33,778.06,20.43205222]
[1609617842472,15.0,778.26,778.06,20.43205222]
[1609617843072,6.01438,778.07,778.06,20.43205222]
[1609617843472,92.48178,778.07,778.06,20.43205222]
[1609617843972,107.48178,778.07,778.06,20.43205222]
[1609617844172,92.48178,778.07,778.06,20.43205222]
[1609617844374,10.15738,778.07,778.06,20.43205222]
[1609617844576,10.15738,778.07,778.04,20.45212404]
[1609617844776,12.72388,778.07,778.04,20.45212404]
[1609617845377,10.15738,778.07,778.04,20.45212404]
[1609617845577,10.15738,778.07,777.65,6.01438]
[1609617845976,4.143,778.07,777.65,6.01438]
[1609617846177,4.827,778.33,777.76,20.44414174]
[1609617846376,2.5485,778.44,777.76,23.95014174]
[1609617846878,4.302,778.6,777.76,23.95014174]
[1609617847078,6.01438,778.42,778.29,6.01438]
[1609617847479,6.01438,778.42,777.91,20.4359849]
[1609617848080,2.5872,778.41,777.91,20.4359849]
[1609617848481,6.01438,778.42,777.91,20.4359849]
[1609617848679,6.01438,778.42,778.07,20.44005603]
[1609617848879,6.01438,778.42,778.07,23.93305603]
[1609617849079,6.01438,778.08,778.07,23.93305603]
[1609617849480,8.56598,778.08,778.07,23.93305603]
[1609617849681,8.56598,778.08,778.07,3.493]
[1609617849880,24.34038,778.08,777.95,20.44450358]
[1609617850280,75.0254,777.98,777.95,20.44450358]
[1609617850482,75.0254,777.98,777.67,20.44964215]
[1609617850483,90.0254,777.98,777.67,20.44964215]
[1609617850880,15.0,777.96,777.67,20.44964215]
[1609617851080,6.01438,777.68,777.67,20.44964215]
[1609617851281,6.01438,777.68,777.51,23.59574094]
[1609617851282,9.19038,777.68,777.51,20.45378902]
[1609617851984,22.09598,777.68,777.51,20.45378902]
[1609617852183,101.2668,777.52,777.51,20.45378902]
[1609617852382,101.2668,777.52,777.51,12.94008902]
[1609617852583,104.7458,777.52,777.22,23.60414331]
[1609617852984,6.01438,777.23,777.22,23.60414331]
[1609617853382,6.01438,777.23,776.97,6.01438]
[1609617853383,6.01438,777.23,777.08,23.61333311]
[1609617853583,8.60788,777.23,777.08,23.61333311]
[1609617853783,6.01438,777.23,777.08,23.61333311]
[1609617853983,73.2089,777.12,777.08,23.61333311]
[1609617854186,73.2089,777.12,776.99,23.61709715]
[1609617854986,6.01438,777.0,776.99,23.61709715]
[1609617855590,112.96728,777.0,776.99,23.61709715]
[1609617855990,127.96728,777.0,776.99,23.61709715]
[1609617856189,127.96728,777.0,776.99,4.53799715]
[1609617857090,21.01438,777.0,776.83,26.76604344]
[1609617857291,80.4901,776.87,776.64,26.78418525]
[1609617857689,15.0,776.86,776.64,26.78418525]
[1609617857891,90.9814,776.65,776.64,26.78418525]
[1609617858092,105.9814,776.65,776.64,26.78418525]
[1609617858292,90.9814,776.65,776.64,26.78418525]
[1609617858492,90.9814,776.65,775.87,33.08634648]
[1609617858493,105.9814,776.65,775.97,26.79764288]
[1609617858893,15.0,776.65,775.97,26.79764288]
[1609617859093,107.24418,775.98,775.97,26.79764288]
[1609617859492,122.24418,775.98,775.97,26.79764288]
[1609617859894,126.02118,775.98,775.53,26.80949408]
[1609617860092,24.79138,775.98,775.53,26.80949408]
[1609617860293,81.618,775.54,775.53,26.80949408]
[1609617860895,4.275,775.69,775.53,26.80949408]
[1609617861296,4.275,775.69,775.21,4.627]
[1609617862397,3.777,775.98,775.21,4.627]
[1609617863001,0.03722481,776.28,775.97,6.01438]
[1609617864217,0.03722481,776.28,775.92,3.068]
[1609617865209,6.01438,776.01,775.92,3.068]
[1609617865808,100.6188,776.0,775.21,4.627]
[1609617866006,15.0,775.99,775.21,4.627]
[1609617866207,15.0,775.99,775.16,26.80384821]
[1609617866406,100.6188,776.0,771.75,8.035]
[1609617866407,100.6188,776.0,775.5,26.81394434]
[1609617866607,6.01438,776.01,775.5,26.81394434]
[1609617867208,6.01438,775.6,775.5,26.81394434]
[1609617867409,6.01438,775.6,775.21,3.829]
[1609617867608,3.244,775.85,775.21,3.829]
[1609617869213,3.546,776.07,775.84,6.01438]
[1609617869613,0.03724391,776.37,775.84,6.01438]
[1609617870814,5.2134391,776.47,775.84,6.01438]
[1609617870815,4.841,776.47,775.84,6.01438]
[1609617871016,0.03728668,776.61,775.84,6.01438]
[1609617871215,0.03728668,776.61,776.46,6.01438]
[1609617871415,0.03728668,776.61,776.31,3.974]
[1609617872215,6.01438,776.96,776.31,3.974]
[1609617873117,6.01438,776.64,776.31,3.974]
[1609617874723,0.11230352,777.02,776.31,3.974]
[1609617875125,6.01438,776.99,776.6,6.01438]
[1609617877127,6.01438,776.99,776.94,6.01438]
[1609617877327,6.01438,776.99,776.94,9.25838]
[1609617877527,0.11230352,777.02,776.94,9.25838]
[1609617878428,0.11230352,777.02,776.94,3.244]
[1609617879128,6.12668352,777.02,776.94,3.244]
[1609617880129,0.11230352,777.02,776.94,3.244]
[1609617881129,0.11230352,777.02,777.0,6.01438]
[1609617881530,106.1288,777.51,777.0,6.01438]
[1609617883033,22.43717085,778.1,777.0,6.01438]
[1609617883233,6.01438,777.8,777.39,6.01438]
[1609617883435,6.01438,777.8,777.39,9.95238]
[1609617883835,6.01438,777.8,777.39,3.938]
[1609617885139,16.48904723,777.63,777.44,6.01438]
[1609617885739,5.24663609,777.6,777.44,6.01438]
[1609617887142,6.01438,777.63,777.59,6.01438]
[1609617887541,6.01438,777.63,777.59,9.92938]
[1609617887741,6.01438,777.63,777.59,3.915]
[1609617888542,9.29737021,778.4,777.59,3.915]
[1609617889144,6.01438,777.94,777.85,6.01438]
[1609617889343,6.01438,777.94,777.59,3.915]
[1609617891246,6.01438,777.94,777.82,6.01438]
[1609617891445,6.01438,777.94,777.82,9.62938]
[1609617891645,4.862,778.24,777.82,9.62938]
[1609617892448,4.029,778.4,777.82,9.62938]
[1609617893146,4.029,778.4,777.93,6.01438]
[1609617893347,4.029,778.4,777.82,3.615]
[1609617894148,4.72155122,778.39,777.82,3.615]
[1609617894758,15.0,778.38,777.82,3.615]
[1609617894961,17.5359,778.38,777.82,3.615]
[1609617895157,6.01438,777.83,777.82,3.615]
[1609617896157,4.72155122,778.39,777.82,3.615]
[1609617896568,4.72155122,778.39,777.59,3.915]
[1609617896759,4.72155122,778.39,777.82,3.029]
[1609617897260,6.01438,778.27,778.11,6.01438]
[1609617898060,6.01438,778.27,777.82,3.029]
[1609617899260,4.72155122,778.39,777.99,6.01438]
[1609617899462,4.72155122,778.39,777.99,9.32338]
[1609617899964,5.26381349,778.37,777.99,9.32338]
[1609617900563,5.26381349,778.37,777.99,3.309]
[1609617900962,2.5756,778.36,777.99,3.309]
[1609617901163,6.01438,778.0,777.99,3.309]